bitfinex/quotes_BTCUSD_20260308
["timestamp","ask_amount","ask_price","bid_price","bid_amount"]
[1772960213339,0.07400828,67560.0,67550.0,0.07401924]
[1772960213679,0.00022001,67557.0,67550.0,0.07401924]
[1772960216384,0.07163761,67561.0,67550.0,0.07401924]
[1772960216554,0.07400853,67560.0,67550.0,0.07401924]
[1772960216748,0.07163761,67561.0,67550.0,0.07401924]
[1772960220548,0.00022001,67557.0,67550.0,0.07401924]
[1772960221943,0.15212018,67562.0,67550.0,0.07401924]
[1772960221944,0.07400631,67562.0,67551.0,0.02206965]
[1772960222916,0.07400631,67562.0,67552.0,0.07401705]
[1772960225081,0.07400631,67562.0,67551.0,0.0960867]
[1772960225383,0.07400631,67562.0,67552.0,0.07401705]
[1772960226591,0.02155516,67561.0,67550.0,0.07401823]
[1772960227362,0.07400828,67560.0,67550.0,0.07401823]
[1772960229445,0.00245633,67564.0,67550.0,0.07401823]
[1772960229446,0.07626081,67575.0,67554.0,0.07629811]
[1772960229646,0.07626081,67571.0,67551.0,0.02171257]
[1772960229851,0.02268027,67568.0,67552.0,0.00148]
[1772960230086,0.07421109,67576.0,67550.0,0.0004]
[1772960230087,0.00148,67569.0,67550.0,0.0004]
[1772960230287,0.07626081,67566.0,67553.0,0.00148]
[1772960230492,0.07421109,67576.0,67553.0,0.00148]
[1772960230792,0.07421109,67576.0,67554.0,0.00248]
[1772960230793,0.02268027,67571.0,67554.0,0.00248]
[1772960230956,0.07626081,67568.0,67554.0,0.00148]
[1772960231156,0.02268027,67565.0,67554.0,0.00148]
[1772960231359,0.0740039,67564.0,67554.0,0.07549435]
[1772960231851,0.09668417,67564.0,67554.0,0.07549435]
[1772960232058,0.02268027,67563.0,67554.0,0.07549435]
[1772960232478,0.02268027,67561.0,67550.0,0.0004]
[1772960232678,0.02268027,67557.0,67542.0,0.00011928]
[1772960232992,0.09894108,67555.0,67545.0,0.0016892]
[1772960233149,0.07626081,67555.0,67542.0,0.00011928]
[1772960233348,0.07401595,67553.0,67543.0,0.00148]
[1772960233796,0.02268027,67550.0,67535.0,0.00148]
[1772960233958,0.07626081,67547.0,67535.0,0.07551514]
[1772960234156,0.02268027,67544.0,67535.0,0.07403514]
[1772960234497,0.02268027,67542.0,67535.0,0.00148]
[1772960234798,0.02268027,67542.0,67534.0,0.07572566]
[1772960235358,0.02268027,67542.0,67538.0,0.0002]
[1772960236195,0.0740291,67541.0,67538.0,0.0002]
[1772960238417,0.07402384,67546.0,67538.0,0.0002]
[1772960238645,0.09670411,67546.0,67538.0,0.0002]
[1772960240312,0.07402384,67546.0,67538.0,0.0002]
[1772960242718,0.07402384,67546.0,67538.0,0.02191257]
[1772960243097,0.07424385,67546.0,67538.0,0.02191257]
[1772960244598,0.02268027,67545.0,67538.0,0.00148]
[1772960245364,0.07424385,67546.0,67538.0,0.00148]
[1772960246250,0.07424385,67546.0,67535.0,0.0002]
[1772960246447,0.07424385,67546.0,67535.0,0.00168]
[1772960246771,0.07424385,67546.0,67536.0,0.07403458]
[1772960246988,0.07424385,67546.0,67536.0,0.07551458]
[1772960250730,0.07424385,67546.0,67537.0,0.02171257]
[1772960251714,0.00022001,67546.0,67538.0,0.07403239]
[1772960251974,0.07424364,67546.0,67538.0,0.09574496]
[1772960257071,0.00022001,67546.0,67538.0,0.09574496]
[1772960257431,0.07424388,67546.0,67538.0,0.09574496]
[1772960259901,0.07424388,67546.0,67539.0,0.02209691]
[1772960261401,0.07424388,67546.0,67540.0,0.0740302]
[1772960265260,0.07424388,67546.0,67537.0,0.07403239]
[1772960265261,0.07424388,67546.0,67538.0,0.07403157]
[1772960266344,0.07424388,67546.0,67539.0,0.00148]
[1772960266923,0.07424388,67546.0,67539.0,0.0016304]
[1772960269213,0.07424388,67546.0,67540.0,0.0740302]
[1772960269815,0.00022001,67546.0,67540.0,0.0741806]
[1772960270349,0.07423623,67553.0,67541.0,0.02209691]
[1772960270549,0.07423623,67553.0,67541.0,0.0222161]
[1772960270908,0.07423623,67553.0,67541.0,0.0223665]
[1772960271339,0.07423623,67553.0,67542.0,0.07402801]
[1772960272765,0.07423623,67553.0,67542.0,0.09612492]
[1772960273316,0.02174403,67552.0,67542.0,0.07402801]
[1772960273948,0.07423623,67553.0,67542.0,0.07402801]
[1772960277754,0.09598026,67553.0,67542.0,0.07402801]
[1772960278068,0.07423623,67553.0,67542.0,0.07402801]
[1772960278551,0.02174403,67552.0,67538.0,0.0002]
[1772960278754,0.02174403,67548.0,67539.0,0.00148]
[1772960278978,0.00011919,67552.0,67539.0,0.00148]
[1772960279853,0.02186322,67552.0,67539.0,0.00148]
[1772960281203,0.07401814,67551.0,67539.0,0.0755103]
[1772960281961,0.04869154,67550.0,67524.0,0.0002]
[1772960282128,0.08110439,67546.0,67526.0,0.00148]
[1772960282304,0.08110439,67542.0,67524.0,0.00148]
[1772960282531,0.02174403,67539.0,67520.0,0.07424235]
[1772960282688,0.04909154,67550.0,67523.0,0.00148]
[1772960282689,0.07972258,67537.0,67523.0,0.00148]
[1772960282895,0.02322403,67536.0,67523.0,0.00148]
[1772960283318,0.02174403,67534.0,67523.0,0.00148]
[1772960283516,0.07910566,67533.0,67519.0,0.00148]
[1772960283841,0.07403568,67535.0,67518.0,0.07553404]
[1772960283842,0.02280253,67528.0,67518.0,0.07553404]
[1772960284037,0.02280253,67528.0,67519.0,0.07405306]
[1772960285047,0.02280253,67528.0,67519.0,0.07445081]
[1772960285448,0.07404445,67527.0,67519.0,0.07445081]
[1772960286009,0.07404445,67527.0,67519.0,0.07465081]
[1772960288651,0.07403897,67532.0,67519.0,0.07465081]
[1772960288859,0.0970271,67532.0,67520.0,0.00148]
[1772960291324,0.07403897,67533.0,67521.0,0.07405103]
[1772960291325,0.02298813,67533.0,67521.0,0.07405103]
[1772960293186,0.02298813,67533.0,67521.0,0.07425103]
[1772960293388,0.0970271,67532.0,67521.0,0.07425103]
[1772960294091,0.07403897,67532.0,67521.0,0.07425103]
[1772960294297,0.02298813,67531.0,67521.0,0.07425103]
[1772960295788,0.07404116,67530.0,67521.0,0.07425103]
[1772960298359,0.07404116,67530.0,67521.0,0.0002]
[1772960299911,0.02298813,67529.0,67519.0,0.07464988]
[1772960300041,0.02298813,67529.0,67520.0,0.00148]
[1772960300445,0.07404335,67528.0,67520.0,0.00148]
[1772960301287,0.07404335,67528.0,67520.0,0.07553186]
[1772960305037,0.07403787,67535.0,67523.0,0.07650266]
[1772960305203,0.07403787,67535.0,67525.0,0.02320549]
[1772960305407,0.07403787,67535.0,67525.0,0.09970815]
[1772960306253,0.07403568,67536.0,67526.0,0.07404555]
[1772960306575,0.07402826,67542.0,67528.0,0.02320549]
[1772960306783,0.07402826,67542.0,67532.0,0.02320549]
[1772960307075,0.07402826,67542.0,67532.0,0.09970815]
[1772960307875,0.07402826,67542.0,67533.0,0.00148]
[1772960308431,0.07402826,67542.0,67534.0,0.07403678]
[1772960309576,0.07402691,67543.0,67534.0,0.07403678]
[1772960310243,0.07402691,67543.0,67535.0,0.02320549]
[1772960310633,0.07402691,67543.0,67536.0,0.07403458]
[1772960314615,0.07424692,67543.0,67536.0,0.07403458]
[1772960315796,0.07463953,67550.0,67536.0,0.07403458]
[1772960315994,0.07463953,67550.0,67537.0,0.02320549]
[1772960316193,0.07463953,67550.0,67536.0,0.07403458]
[1772960316425,0.00062001,67550.0,67537.0,0.07727694]
[1772960316580,0.00062001,67550.0,67539.0,0.07727694]
[1772960316777,0.00062001,67550.0,67541.0,0.09723459]
[1772960318046,0.0007392,67550.0,67541.0,0.09723459]
[1772960318247,0.00022001,67553.0,67541.0,0.0740291]
[1772960318417,0.00022001,67553.0,67543.0,0.07727694]
[1772960318616,0.00022001,67553.0,67544.0,0.02429348]
[1772960318817,0.00022001,67553.0,67545.0,0.07402472]
[1772960320047,0.07423669,67553.0,67545.0,0.07402472]
[1772960320747,0.07423669,67553.0,67541.0,0.07414829]
[1772960321172,0.02389329,67551.0,67533.0,0.02429348]
[1772960321454,0.02389329,67549.0,67534.0,0.00148]
[1772960321821,0.02389329,67549.0,67535.0,0.00148]
[1772960323058,0.02389329,67549.0,67533.0,0.07403691]
[1772960323059,0.02389329,67547.0,67533.0,0.07403691]
[1772960323259,0.07402143,67548.0,67533.0,0.07551691]
[1772960323260,0.02389329,67545.0,67533.0,0.07551691]
[1772960323816,0.02389329,67545.0,67533.0,0.07403691]
[1772960324020,0.02389329,67545.0,67533.0,0.07551691]
[1772960324855,0.02389329,67545.0,67533.0,0.07403691]
[1772960325033,0.02389329,67545.0,67533.0,0.07551691]
[1772960325416,0.02389329,67543.0,67527.0,0.07404445]
[1772960325626,0.02389329,67541.0,67527.0,0.07404445]
[1772960326583,0.02389329,67541.0,67527.0,0.07552445]
[1772960328121,0.0740302,67540.0,67527.0,0.07552445]
[1772960328559,0.0740302,67540.0,67527.0,0.07572445]
[1772960328820,0.00022001,67544.0,67529.0,0.02429348]
[1772960329070,0.00090069,67543.0,67532.0,0.02429348]
[1772960329282,0.00090069,67543.0,67532.0,0.10157042]
[1772960329477,0.00090069,67543.0,67533.0,0.00148]
[1772960330848,0.00090069,67543.0,67534.0,0.07403678]
[1772960336950,0.07492763,67543.0,67534.0,0.07403678]
[1772960338585,0.07492763,67543.0,67534.0,0.07423678]
[1772960340273,0.07492763,67543.0,67534.0,0.07419678]
[1772960343913,0.07492763,67543.0,67535.0,0.02239319]
[1772960344484,0.07492763,67543.0,67536.0,0.07403458]
[1772960347226,0.07514764,67543.0,67534.0,0.07419678]
[1772960350530,0.07514764,67543.0,67534.0,0.1771599]
[1772960352638,0.00022001,67543.0,67535.0,0.08011965]
[1772960352922,0.07424616,67544.0,67536.0,0.02284347]
[1772960353298,0.07423972,67550.0,67535.0,0.08011965]
[1772960353635,0.07423972,67550.0,67534.0,0.07419678]
[1772960353636,0.07402034,67549.0,67538.0,0.02284347]
[1772960353782,0.07402034,67549.0,67539.0,0.00148]
[1772960354548,0.07402034,67549.0,67540.0,0.09687367]
[1772960354549,0.00022001,67543.0,67540.0,0.09687367]
[1772960355874,0.00022001,67543.0,67541.0,0.02284347]
[1772960357546,0.00022001,67550.0,67541.0,0.07402841]
[1772960357744,0.00022001,67550.0,67542.0,0.02284347]
[1772960358489,0.07423941,67550.0,67542.0,0.02284347]
[1772960358705,0.07423941,67550.0,67540.0,0.0740291]
[1772960359098,0.07423941,67550.0,67541.0,0.02284347]
[1772960361034,0.07423941,67550.0,67541.0,0.09687233]
[1772960362164,0.00033769,67551.0,67541.0,0.07402886]
[1772960362364,0.00029769,67551.0,67542.0,0.02284347]
[1772960362570,0.00022001,67553.0,67543.0,0.02284347]
[1772960362867,0.00022001,67553.0,67544.0,0.02284347]
[1772960363069,0.00022001,67553.0,67545.0,0.00148]
[1772960364320,0.00022001,67553.0,67546.0,0.07402362]
[1772960364683,0.07401282,67556.0,67546.0,0.07402362]
[1772960364889,0.07401282,67556.0,67547.0,0.02284347]
[1772960367592,0.00022001,67553.0,67547.0,0.02284347]
[1772960368896,0.07423641,67553.0,67545.0,0.00148]
[1772960369094,0.07423641,67553.0,67545.0,0.07550437]
[1772960369095,0.00022001,67553.0,67545.0,0.07550437]
[1772960370801,0.08134967,67550.0,67526.0,0.07404477]
[1772960371002,0.02198114,67544.0,67535.0,0.00148]
[1772960371205,0.02198114,67542.0,67536.0,0.00148]
[1772960371404,0.02198114,67541.0,67535.0,0.00148]
[1772960372661,0.07402143,67548.0,67535.0,0.00148]
[1772960372662,0.02198114,67546.0,67535.0,0.00148]
[1772960373647,0.02198114,67544.0,67535.0,0.00148]
[1772960374267,0.07632127,67544.0,67535.0,0.00148]
[1772960374468,0.02198114,67543.0,67535.0,0.00148]
[1772960375752,0.07402801,67542.0,67535.0,0.00148]
[1772960376748,0.09600915,67542.0,67535.0,0.00148]
[1772960378084,0.09600915,67542.0,67535.0,0.0016303]
[1772960379094,0.09600915,67542.0,67527.0,0.0002]
[1772960379095,0.07402801,67542.0,67527.0,0.0002]
[1772960379499,0.0223453,67540.0,67527.0,0.00168]
[1772960379694,0.0223453,67539.0,67527.0,0.00168]
[1772960380231,0.0223453,67537.0,67527.0,0.00168]
[1772960380410,0.0223453,67536.0,67527.0,0.00168]
[1772960382044,0.0223453,67536.0,67528.0,0.0002]
[1772960382224,0.07403568,67535.0,67528.0,0.0002]
[1772960382729,0.07403568,67535.0,67528.0,0.00031768]
[1772960388000,0.0223453,67534.0,67525.0,0.00188]
[1772960388222,0.07403787,67533.0,67526.0,0.00052435]
[1772960389875,0.07403787,67533.0,67528.0,0.0002]
[1772960395822,0.07403568,67538.0,67528.0,0.0002]
[1772960396470,0.0223453,67537.0,67528.0,0.0002]
[1772960396774,0.001,67533.0,67528.0,0.0002]
[1772960397131,0.09638098,67538.0,67528.0,0.0002]
[1772960397335,0.09738098,67538.0,67528.0,0.0002]
[1772960397549,0.09638098,67538.0,67528.0,0.0002]
[1772960397941,0.07403897,67532.0,67528.0,0.0002]
[1772960399458,1.07403897,67532.0,67528.0,0.0002]
[1772960399886,1.07503897,67532.0,67528.0,0.0002]
[1772960400943,0.75807177,67532.0,67529.0,0.02222303]
[1772960401142,0.07402912,67541.0,67529.0,0.02222303]
[1772960401364,0.07423758,67552.0,67529.0,0.02222303]
[1772960401365,0.00022001,67552.0,67529.0,0.02222303]
[1772960401562,0.00022001,67549.0,67529.0,0.02222303]
[1772960401918,0.00022001,67549.0,67530.0,0.02222303]
[1772960401919,0.08313112,67548.0,67530.0,0.02222303]
[1772960402152,0.08313112,67548.0,67525.0,0.0004]
[1772960402153,0.08313112,67548.0,67521.0,0.00168]
[1772960402154,0.0223453,67543.0,67521.0,0.00168]
[1772960402320,0.0223453,67539.0,67522.0,0.02222303]
[1772960402671,0.08313112,67538.0,67522.0,0.02222303]
[1772960402870,0.08313112,67537.0,67522.0,0.02222303]
[1772960403427,0.08337462,67537.0,67522.0,0.02222303]
[1772960403750,0.00148,67536.0,67526.0,0.0002]
[1772960404066,0.00022001,67533.0,67526.0,0.0002]
[1772960404271,0.07425882,67533.0,67526.0,0.0002]
[1772960405108,0.00148,67536.0,67526.0,0.0003681]
[1772960405570,0.08797919,67547.0,67527.0,0.02338318]
[1772960405777,0.00148,67546.0,67527.0,0.02338318]
[1772960405982,0.08797919,67545.0,67527.0,0.02338318]
[1772960406311,0.1620061,67543.0,67528.0,0.09742653]
[1772960406575,0.07402691,67543.0,67529.0,0.02338318]
[1772960406742,0.00148,67542.0,67529.0,0.02338318]
[1772960407597,0.08945919,67542.0,67529.0,0.02338318]
[1772960409644,0.2219715,67544.0,67530.0,0.07404116]
[1772960409645,0.22197049,67544.0,67530.0,0.07404116]
[1772960409820,0.0755059,67544.0,67531.0,0.02589217]
[1772960410025,0.04872541,67541.0,67522.0,1.09e-06]
[1772960410232,0.08797919,67537.0,67522.0,1.09e-06]
[1772960410439,0.00148,67536.0,67523.0,0.08777443]
[1772960410603,0.00148,67535.0,67522.0,1.09e-06]
[1772960410811,0.00148,67534.0,67522.0,1.09e-06]
[1772960411180,0.00148,67533.0,67522.0,1.09e-06]
[1772960411336,0.00148,67533.0,67526.0,0.0002]
[1772960411713,0.07403897,67532.0,67526.0,0.0002]
[1772960412874,0.07403897,67532.0,67507.0,0.07426529]
[1772960413085,0.04872541,67530.0,67506.0,0.0002]
[1772960413416,0.2220472,67532.0,67504.0,0.0002]
[1772960413417,0.02598368,67516.0,67504.0,0.0002]
[1772960413633,0.08797919,67513.0,67502.0,0.07407161]
[1772960413766,0.0740609,67512.0,67502.0,0.07407161]
[1772960414555,0.0740609,67512.0,67502.0,0.07446912]
[1772960415234,0.02598368,67511.0,67491.0,0.07408395]
[1772960415355,0.08797919,67508.0,67492.0,0.0740818]
[1772960415557,0.08797919,67506.0,67492.0,0.0740818]
[1772960415859,0.07406858,67505.0,67492.0,0.0740818]
[1772960416067,0.07406858,67505.0,67492.0,0.09997397]
[1772960417104,0.16204777,67505.0,67492.0,0.09997397]
[1772960417971,0.02598368,67504.0,67492.0,0.0740818]
[1772960418513,0.02598368,67504.0,67492.0,0.0742818]
[1772960419234,0.02598368,67502.0,67492.0,0.0742818]
[1772960419443,0.08945919,67501.0,67492.0,0.0742818]
[1772960420894,0.16205254,67501.0,67492.0,0.0002]
[1772960421122,0.00148,67500.0,67492.0,0.0002]
[1772960423166,0.07407335,67501.0,67492.0,0.0002]
[1772960423369,0.00148,67509.0,67495.0,0.02589217]
[1772960423594,0.00148,67508.0,67502.0,0.08777443]
[1772960423798,0.00148,67508.0,67505.0,0.02589217]
[1772960424159,0.07405394,67519.0,67506.0,0.02589217]
[1772960424346,0.07444672,67525.0,67507.0,0.08777443]
[1772960424500,0.00148,67524.0,67496.0,0.00148]
[1772960424695,0.07444672,67525.0,67496.0,0.00148]
[1772960424696,0.00148,67523.0,67496.0,0.00148]
[1772960424891,0.07444672,67525.0,67499.0,0.08777443]
[1772960425130,0.00148,67522.0,67502.0,0.02589217]
[1772960425335,0.07405103,67521.0,67505.0,0.1136666]
[1772960425495,0.07405103,67521.0,67504.0,0.07406968]
[1772960425694,0.07405103,67521.0,67507.0,0.08777443]
[1772960425695,0.00148,67520.0,67507.0,0.08777443]
[1772960425898,0.00148,67520.0,67508.0,0.02589217]
[1772960427568,0.0755325,67520.0,67509.0,0.07406419]
[1772960427733,0.0755325,67520.0,67510.0,0.02589217]
[1772960429877,0.0755325,67520.0,67511.0,0.074062]
[1772960430879,0.0755325,67520.0,67511.0,0.09995417]
[1772960431279,0.0755325,67520.0,67512.0,0.02589217]
[1772960431944,0.00148,67520.0,67512.0,0.02589217]
[1772960432139,0.07405159,67521.0,67512.0,0.02589217]
[1772960432339,0.00148,67520.0,67513.0,0.07405981]
[1772960432813,0.00148,67519.0,67513.0,0.07405981]
[1772960436801,0.07441498,67527.0,67514.0,0.02589217]
[1772960437000,0.00148,67526.0,67515.0,0.02589217]
[1772960437164,0.00037001,67527.0,67515.0,0.02589217]
[1772960437165,0.07441461,67527.0,67515.0,0.02589217]
[1772960437354,0.00148,67525.0,67515.0,0.02589217]
[1772960437755,0.07441461,67527.0,67515.0,0.02589217]
[1772960437953,0.00148,67526.0,67515.0,0.02589217]
[1772960438601,0.07441461,67527.0,67515.0,0.02589217]
[1772960438835,0.07552674,67525.0,67516.0,0.09962094]
[1772960439156,0.00148,67524.0,67516.0,0.09962094]
[1772960439366,0.00148,67524.0,67517.0,0.02556443]
[1772960440702,0.00044321,67524.0,67518.0,0.07405432]
[1772960444212,0.00044321,67524.0,67514.0,0.07405871]
[1772960444413,0.00044321,67524.0,67515.0,0.02556443]
[1772960445315,0.07449143,67524.0,67515.0,0.02556443]
[1772960445532,0.00044321,67524.0,67515.0,0.02556443]
[1772960446194,0.07449192,67524.0,67515.0,0.02556443]
[1772960446388,0.07449192,67524.0,67516.0,0.07405651]
[1772960446990,0.00044321,67524.0,67516.0,0.07405651]
[1772960447668,0.00066322,67524.0,67516.0,0.07405651]
[1772960448568,0.00066322,67524.0,67515.0,0.07405651]
[1772960449364,0.00022001,67526.0,67516.0,0.02556443]
[1772960449568,0.00148,67525.0,67516.0,0.02556443]
[1772960449972,0.00148,67524.0,67516.0,0.02556443]
[1772960450711,0.00148,67524.0,67517.0,0.09961985]
[1772960450878,0.00148,67523.0,67517.0,0.09961985]
[1772960451263,0.0740477,67525.0,67517.0,0.09961985]
[1772960451460,0.00148,67524.0,67517.0,0.09961985]
[1772960452502,0.08000243,67538.0,67517.0,0.07405542]
[1772960452702,0.08000251,67538.0,67521.0,0.0891929]
[1772960452903,0.00148,67537.0,67524.0,0.02556443]
[1772960453159,0.00597001,67538.0,67524.0,0.02556443]
[1772960453337,0.00148,67536.0,67524.0,0.02556443]
[1772960453688,0.00148,67535.0,67524.0,0.02556443]
[1772960455404,0.00148,67535.0,67525.0,0.07404664]
[1772960455625,0.00148,67535.0,67526.0,0.02556443]
[1772960457913,0.00022001,67536.0,67527.0,0.07404445]
[1772960458117,0.00148,67535.0,67528.0,0.02556443]
[1772960460563,0.09027777,67533.0,67509.0,0.2195316]
[1772960460860,0.09027777,67526.0,67513.0,0.07401931]
[1772960461092,0.09027777,67524.0,67510.0,0.07406285]
[1772960461273,0.09027777,67523.0,67512.0,0.07405981]
[1772960461480,0.09027777,67523.0,67511.0,0.074062]
[1772960462465,0.09027777,67520.0,67511.0,0.0002]
[1772960462783,0.00148,67519.0,67513.0,0.001]
[1772960462962,0.00148,67519.0,67511.0,0.0002]
[1772960464461,0.07405432,67518.0,67511.0,0.0002]
[1772960465699,0.00148,67517.0,67512.0,0.02678371]
[1772960466056,0.0740538,67519.0,67512.0,0.02678371]
[1772960466401,0.00148,67516.0,67512.0,0.02678371]
[1772960466617,0.09080761,67536.0,67515.0,0.02678371]
[1772960466827,0.00148,67535.0,67518.0,0.09131314]
[1772960467030,0.00148,67535.0,67519.0,0.02678371]
[1772960467646,0.0920676,67535.0,67519.0,0.02678371]
[1772960468806,0.07403678,67534.0,67521.0,0.02648975]
[1772960469510,0.07403678,67534.0,67519.0,0.07405257]
[1772960469711,0.02664076,67532.0,67518.0,0.07405213]
[1772960469913,0.0905876,67529.0,67518.0,0.07405213]
[1772960470117,0.00148,67528.0,67518.0,0.07405213]
[1772960470526,0.00148,67528.0,67511.0,0.00168]
[1772960470527,0.00148,67528.0,67513.0,0.07405945]
[1772960470731,0.11722836,67525.0,67512.0,0.07406037]
[1772960470913,0.11722836,67524.0,67512.0,0.07406037]
[1772960471122,0.02361555,67528.0,67512.0,0.07406037]
[1772960471326,0.0905876,67520.0,67511.0,0.07426174]
[1772960471505,0.0905876,67519.0,67511.0,0.07426174]
[1772960471698,0.0905876,67519.0,67511.0,0.0002]
[1772960472147,0.0905876,67517.0,67508.0,0.06591495]
[1772960472335,0.0920676,67516.0,67508.0,0.06591495]
[1772960472524,0.11870836,67516.0,67508.0,0.06591495]
[1772960472730,0.19276588,67516.0,67506.0,0.0002]
[1772960472938,0.16612512,67516.0,67506.0,0.0002]
[1772960473744,0.00148,67515.0,67506.0,0.0002]
[1772960474089,0.11722836,67513.0,67504.0,0.0002]
[1772960474776,0.1646496,67511.0,67502.0,0.0002]
[1772960475115,0.0905876,67511.0,67502.0,0.0002]
[1772960475559,0.00148,67510.0,67502.0,0.0002]
[1772960476125,0.0920676,67510.0,67502.0,0.0002]
[1772960476330,0.11870836,67510.0,67502.0,0.0002]
[1772960476724,0.00148,67510.0,67501.0,0.07407297]
[1772960476930,0.11722836,67509.0,67498.0,0.07407543]
[1772960477354,0.00148,67508.0,67498.0,0.07407543]
[1772960477572,0.11722836,67509.0,67498.0,0.07407543]
[1772960478029,0.00148,67508.0,67498.0,0.07407543]
[1772960478617,0.07405533,67518.0,67497.0,0.07427685]
[1772960478925,0.07444685,67525.0,67504.0,0.02648975]
[1772960478926,0.00148,67516.0,67504.0,0.02648975]
[1772960479224,0.07404884,67523.0,67504.0,0.02648975]
[1772960479517,0.02664076,67522.0,67504.0,0.02648975]
[1772960479718,0.00148,67516.0,67504.0,0.02648975]
[1772960480146,0.00148,67515.0,67504.0,0.02648975]
[1772960480524,0.02664076,67513.0,67502.0,0.07427187]
[1772960480691,0.02664076,67513.0,67502.0,0.0002]
[1772960480890,0.0905876,67510.0,67499.0,0.07407422]
[1772960481132,0.0905876,67508.0,67499.0,0.07407422]
[1772960481528,0.11722836,67507.0,67499.0,0.07407422]
[1772960482109,0.07405125,67521.0,67502.0,0.09131314]
[1772960482415,0.07405125,67521.0,67499.0,0.07407422]
[1772960482416,0.00148,67519.0,67504.0,0.09131314]
[1772960482617,0.00148,67519.0,67505.0,0.02648975]
[1772960485890,0.07553333,67519.0,67507.0,0.02648975]
[1772960486991,0.00148,67516.0,67507.0,0.02648975]
[1772960488516,0.00132799,67516.0,67508.0,0.07406529]
[1772960488916,0.001548,67516.0,67508.0,0.07406529]
[1772960489254,0.07560517,67516.0,67508.0,0.07406529]
[1772960489397,0.07560517,67516.0,67504.0,0.07426963]
[1772960489398,0.02664076,67514.0,67504.0,0.07426963]
[1772960489599,0.02664076,67512.0,67504.0,0.07426963]
[1772960489786,0.11722836,67512.0,67504.0,0.07406963]
[1772960490384,0.0905876,67512.0,67500.0,0.07407193]
[1772960490572,0.0905876,67512.0,67497.0,0.0002]
[1772960490573,0.02664076,67508.0,67497.0,0.0002]
[1772960490931,0.00148,67507.0,67497.0,0.0002]
[1772960491372,0.00148,67506.0,67497.0,0.0002]
[1772960491574,0.00148,67505.0,67500.0,0.09131314]
[1772960491776,0.07406088,67513.0,67502.0,0.09131314]
[1772960491777,0.00148,67506.0,67502.0,0.09131314]
[1772960491933,0.00148,67506.0,67503.0,0.02648975]
[1772960492138,0.00148,67506.0,67498.0,0.02648975]
[1772960493656,0.00148,67506.0,67499.0,0.07407517]
[1772960493823,0.07539554,67506.0,67499.0,0.07407517]
[1772960494256,0.02664076,67505.0,67497.0,0.07427685]
[1772960494614,0.02664076,67505.0,67496.0,0.0002]
[1772960494810,0.02664076,67505.0,67496.0,0.07427834]
[1772960495257,0.02664076,67503.0,67490.0,0.0002]
[1772960495491,0.12654254,67501.0,67490.0,0.07428499]
[1772960495635,0.07407517,67499.0,67490.0,0.0002]
[1772960496531,0.07407443,67500.0,67491.0,0.02648975]
[1772960496727,0.00148,67498.0,67491.0,0.02648975]
[1772960497043,0.00148,67498.0,67496.0,0.0002]
[1772960497370,0.00148,67497.0,67493.0,0.02648975]
[1772960497576,0.07407031,67504.0,67495.0,0.02648975]
[1772960497809,0.00148,67503.0,67496.0,0.10056821]
[1772960497983,0.07406956,67505.0,67497.0,0.02648975]
[1772960498280,0.00148,67502.0,67497.0,0.02648975]
[1772960498424,0.07406316,67510.0,67497.0,0.02648975]
[1772960498636,0.07406529,67508.0,67497.0,0.02648975]
[1772960499914,0.09991011,67508.0,67491.0,0.02725195]
[1772960500072,0.07406529,67508.0,67491.0,0.02725195]
[1772960500278,0.02584482,67507.0,67491.0,0.02725195]
[1772960502304,0.07406749,67506.0,67492.0,0.1013348]
[1772960502710,0.02584482,67505.0,67492.0,0.02725195]
[1772960502914,0.09990178,67502.0,67490.0,0.074285]
[1772960503166,0.00148,67501.0,67490.0,0.074285]
[1772960504069,0.00148,67501.0,67492.0,0.0002]
[1772960504422,0.07407407,67500.0,67492.0,0.0002]
[1772960505339,0.02584482,67499.0,67490.0,0.0002]
[1772960506099,0.07421327,67510.0,67492.0,0.02725195]
[1772960506304,0.00148,67506.0,67494.0,0.02725195]
[1772960506462,0.00148,67506.0,67495.0,0.07407956]
[1772960506674,0.00148,67506.0,67496.0,0.02725195]
[1772960508506,0.00148,67506.0,67497.0,0.07407736]
[1772960508938,0.0755485,67506.0,67497.0,0.07407736]
[1772960509635,0.00148,67506.0,67497.0,0.07407736]
[1772960510751,0.09990178,67505.0,67486.0,0.07408944]
[1772960512633,0.07406968,67504.0,67486.0,0.07408944]
[1772960512839,0.09990178,67503.0,67486.0,0.07408944]
[1772960513078,0.09990178,67503.0,67497.0,0.0002]
[1772960513813,0.09990178,67503.0,67490.0,0.0002]
[1772960515178,0.09990178,67501.0,67490.0,0.0002]
[1772960515380,0.09990178,67499.0,67490.0,0.0002]
[1772960517120,0.07407626,67498.0,67490.0,0.0002]
[1772960519637,0.07407626,67498.0,67485.0,0.07428944]
[1772960519638,0.09990178,67497.0,67485.0,0.0002]
[1772960520804,0.09990178,67497.0,67490.0,0.0002]
[1772960521272,0.07407846,67496.0,67490.0,0.0002]
[1772960521448,0.07555846,67496.0,67490.0,0.0002]
[1772960522472,0.07555846,67496.0,67485.0,0.0002]
[1772960522641,0.09654986,67495.0,67483.0,0.0002]
[1772960522840,0.09654986,67495.0,67483.0,0.00027663]
[1772960523369,0.17063051,67494.0,67483.0,0.00027663]
[1772960523743,0.10560675,67493.0,67483.0,0.00027663]
[1772960525577,0.07408285,67492.0,67483.0,0.00027663]
[1772960525793,0.07408285,67492.0,67480.0,0.07409595]
[1772960526091,0.07408285,67492.0,67483.0,0.11962027]
[1772960526092,0.10560675,67491.0,67483.0,0.11962027]
[1772960526297,0.00148,67490.0,67478.0,0.04008827]
[1772960526595,0.10560675,67489.0,67470.0,0.07500762]
[1772960526744,0.10560675,67489.0,67470.0,0.00090069]
[1772960527161,0.10560675,67489.0,67470.0,0.0750076]
[1772960527598,0.10560675,67489.0,67476.0,0.0002]
[1772960527599,0.07408724,67488.0,67476.0,0.0002]
[1772960527780,0.10560675,67487.0,67476.0,0.0002]
[1772960528576,0.10560675,67487.0,67476.0,0.000412]
[1772960529526,0.07408724,67488.0,67476.0,0.000412]
[1772960533148,0.17969619,67486.0,67470.0,0.00090069]
[1772960533355,0.10560675,67485.0,67470.0,0.00090069]
[1772960533559,0.10560675,67483.0,67470.0,0.00090069]
[1772960533775,0.00148,67484.0,67470.0,0.00090069]
[1772960534358,0.00148,67484.0,67476.0,0.0002]
[1772960534580,0.00148,67483.0,67479.0,0.04757702]
[1772960535151,0.07407846,67496.0,67476.0,0.17057437]
[1772960535332,0.00148,67490.0,67479.0,0.04757702]
[1772960535523,0.00148,67490.0,67480.0,0.04757702]
[1772960535724,0.07407846,67496.0,67480.0,0.04757702]
[1772960535923,0.00148,67490.0,67480.0,0.04757702]
[1772960536397,0.00148,67489.0,67480.0,0.04461702]
[1772960536556,0.00148,67488.0,67480.0,0.09627486]
[1772960536783,0.00148,67488.0,67480.0,0.09480739]